[Event "Early-Titled-Tuesday-Blitz-December-26-2023"]
[Site "Chess.com"]
[Date "2023.12.26"]
[Round "9"]
[White "DrCeltic"]
[Black "Sofia_Blokhin"]
[Result "1-0"]
[WhiteElo "2506"]
[BlackElo "2317"]
[TimeControl "180+1"]
[EndTime "9:44:23 PST"]
[Termination "DrCeltic won by resignation"]

1. e4 {[%clk 0:02:59.7]} 1... c5 {[%clk 0:02:57.9]} 2. Nf3 {[%clk 0:02:59.6]}
2... d6 {[%clk 0:02:57.8]} 3. d4 {[%clk 0:03:00.1]} 3... cxd4 {[%clk 0:02:57.1]}
4. Nxd4 {[%clk 0:03:01]} 4... a6 {[%clk 0:02:56.2]} 5. Nc3 {[%clk 0:03:01]} 5...
Nf6 {[%clk 0:02:56.3]} 6. Be3 {[%clk 0:03:01.6]} 6... e5 {[%clk 0:02:56.3]} 7.
Nf3 {[%clk 0:03:01]} 7... Nc6 {[%clk 0:02:56.5]} 8. Bc4 {[%clk 0:03:01.1]} 8...
Be7 {[%clk 0:02:54.9]} 9. O-O {[%clk 0:03:01.3]} 9... O-O {[%clk 0:02:55]} 10.
Bg5 {[%clk 0:02:56.8]} 10... b5 {[%clk 0:02:51.3]} 11. Bxf6 {[%clk 0:02:55.4]}
11... Bxf6 {[%clk 0:02:46]} 12. Bb3 {[%clk 0:02:50.8]} 12... Be6 {[%clk
0:02:41.4]} 13. Nd5 {[%clk 0:02:48.2]} 13... Bg4 {[%clk 0:02:26.6]} 14. c3
{[%clk 0:02:47.6]} 14... Be7 {[%clk 0:02:20.7]} 15. h3 {[%clk 0:02:45.8]} 15...
Bh5 {[%clk 0:02:16.8]} 16. Qd3 {[%clk 0:02:45.3]} 16... Kh8 {[%clk 0:02:10.2]}
17. Rad1 {[%clk 0:02:39.9]} 17... Bg6 {[%clk 0:01:26.9]} 18. Rfe1 {[%clk
0:02:35.2]} 18... f5 {[%clk 0:01:22.9]} 19. Nxe7 {[%clk 0:02:26.1]} 19... Nxe7
{[%clk 0:01:17.3]} 20. Qxd6 {[%clk 0:02:22.7]} 20... Qxd6 {[%clk 0:01:03.6]} 21.
Rxd6 {[%clk 0:02:23.6]} 21... fxe4 {[%clk 0:01:03.9]} 22. Nxe5 {[%clk
0:02:23.4]} 22... Bf5 {[%clk 0:00:55.1]} 23. Nf7+ {[%clk 0:02:13.2]} 23... Kg8
{[%clk 0:00:54.7]} 24. Nh6+ {[%clk 0:02:12.5]} 24... Kh8 {[%clk 0:00:53.9]} 25.
Nxf5 {[%clk 0:02:11.1]} 25... Nxf5 {[%clk 0:00:54]} 26. Re6 {[%clk 0:02:10.3]}
26... e3 {[%clk 0:00:51]} 27. fxe3 {[%clk 0:02:10.8]} 27... Ng3 {[%clk
0:00:48.9]} 28. Re5 {[%clk 0:01:59.7]} 28... Rad8 {[%clk 0:00:47.1]} 29. Rg5
{[%clk 0:01:57.1]} 29... Ne4 {[%clk 0:00:42.2]} 30. Rg4 {[%clk 0:01:55.5]} 30...
Nf2 {[%clk 0:00:23.6]} 31. Rd4 {[%clk 0:01:42.9]} 31... Rde8 {[%clk 0:00:20.7]}
32. Rf1 {[%clk 0:01:40.2]} 32... Rxe3 {[%clk 0:00:20.1]} 33. Rd2 {[%clk
0:01:25.9]} 33... Nxh3+ {[%clk 0:00:13.7]} 34. gxh3 {[%clk 0:01:26.8]} 34...
Rg3+ {[%clk 0:00:13.2]} 35. Kh2 {[%clk 0:01:17.6]} 1-0

[Event "Early-Titled-Tuesday-Blitz-December-26-2023"]
[Site "Chess.com"]
[Date "2023.12.26"]
[Round "9"]
[White "ValentunHulka"]
[Black "stollenmonster"]
[Result "0-1"]
[WhiteElo "2762"]
[BlackElo "2929"]
[TimeControl "180+1"]
[EndTime "9:44:28 PST"]
[Termination "stollenmonster won by resignation"]

1. e4 {[%clk 0:02:36]} 1... c5 {[%clk 0:02:59.6]} 2. Nf3 {[%clk 0:02:36.1]} 2...
Nf6 {[%clk 0:03:00.3]} 3. e5 {[%clk 0:02:34.9]} 3... Nd5 {[%clk 0:03:00.8]} 4.
Nc3 {[%clk 0:02:35.5]} 4... e6 {[%clk 0:03:01.1]} 5. Ne4 {[%clk 0:02:35.8]} 5...
Nc6 {[%clk 0:03:00.8]} 6. Bb5 {[%clk 0:02:28.7]} 6... f5 {[%clk 0:03:00.5]} 7.
Nc3 {[%clk 0:02:19.9]} 7... Nde7 {[%clk 0:03:00.2]} 8. O-O {[%clk 0:02:18.7]}
8... Nd4 {[%clk 0:02:56.1]} 9. Re1 {[%clk 0:02:17.3]} 9... Ng6 {[%clk
0:02:51.5]} 10. Bf1 {[%clk 0:02:05.7]} 10... a6 {[%clk 0:02:29.4]} 11. Nxd4
{[%clk 0:01:44.1]} 11... cxd4 {[%clk 0:02:30.3]} 12. Ne2 {[%clk 0:01:44.7]}
12... Bc5 {[%clk 0:02:29.4]} 13. c3 {[%clk 0:01:39.4]} 13... d3 {[%clk
0:02:19.9]} 14. Nd4 {[%clk 0:01:35.4]} 14... Qh4 {[%clk 0:02:03.6]} 15. g3
{[%clk 0:01:30.9]} 15... Qd8 {[%clk 0:02:03.2]} 16. Nf3 {[%clk 0:01:27.7]} 16...
b5 {[%clk 0:02:02.3]} 17. Bxd3 {[%clk 0:01:26]} 17... Bb7 {[%clk 0:02:02.9]} 18.
Bf1 {[%clk 0:01:25.6]} 18... f4 {[%clk 0:01:57.7]} 19. d4 {[%clk 0:01:25.9]}
19... Be7 {[%clk 0:01:56.5]} 20. Bg2 {[%clk 0:01:25.8]} 20... O-O {[%clk
0:01:56.7]} 21. g4 {[%clk 0:01:22.4]} 21... Bd5 {[%clk 0:01:52.3]} 22. h3 {[%clk
0:01:17.2]} 22... Qc8 {[%clk 0:01:52.2]} 23. b3 {[%clk 0:01:11.7]} 23... Qxc3
{[%clk 0:01:47.6]} 24. Bd2 {[%clk 0:01:09.8]} 24... Qc6 {[%clk 0:01:46]} 25. Rc1
{[%clk 0:01:09.5]} 25... Qb7 {[%clk 0:01:46.3]} 26. Ba5 {[%clk 0:01:07.1]} 26...
Rac8 {[%clk 0:01:46.1]} 27. Qd3 {[%clk 0:01:07.4]} 27... b4 {[%clk 0:01:42.2]}
28. Red1 {[%clk 0:00:55.2]} 28... Be4 {[%clk 0:01:31.2]} 29. Qe2 {[%clk
0:00:54.8]} 29... Qd5 {[%clk 0:01:21.7]} 30. Bb6 {[%clk 0:00:50.9]} 30... Rc3
{[%clk 0:01:18.3]} 31. Rxc3 {[%clk 0:00:46.9]} 31... bxc3 {[%clk 0:01:19.2]} 32.
Rc1 {[%clk 0:00:36.2]} 32... Rc8 {[%clk 0:01:13.9]} 33. Bc5 {[%clk 0:00:36.6]}
33... Bxc5 {[%clk 0:01:10.6]} 34. Rxc3 {[%clk 0:00:36.6]} 34... Bxf3 {[%clk
0:00:53.8]} 35. Bxf3 {[%clk 0:00:28.7]} 35... Qxd4 {[%clk 0:00:53.6]} 0-1

[Event "Early-Titled-Tuesday-Blitz-December-26-2023"]
[Site "Chess.com"]
[Date "2023.12.26"]
[Round "9"]
[White "Louis64"]
[Black "Gyulamiryan-koryun"]
[Result "1-0"]
[WhiteElo "2282"]
[BlackElo "2018"]
[TimeControl "180+1"]
[EndTime "9:44:28 PST"]
[Termination "Louis64 won by resignation"]

1. e4 {[%clk 0:03:00.9]} 1... e5 {[%clk 0:02:59.1]} 2. Nf3 {[%clk 0:03:00.7]}
2... Nc6 {[%clk 0:02:59.1]} 3. d4 {[%clk 0:03:00.9]} 3... exd4 {[%clk
0:02:57.9]} 4. Nxd4 {[%clk 0:03:01.3]} 4... Bc5 {[%clk 0:02:57.1]} 5. Nb3 {[%clk
0:03:01.4]} 5... Bb6 {[%clk 0:02:55.3]} 6. Nc3 {[%clk 0:03:01.5]} 6... Nge7
{[%clk 0:02:51.5]} 7. Bg5 {[%clk 0:02:59.7]} 7... O-O {[%clk 0:02:49.8]} 8. Qd2
{[%clk 0:02:59.4]} 8... f6 {[%clk 0:02:49.2]} 9. Be3 {[%clk 0:02:52]} 9... Bxe3
{[%clk 0:02:38.1]} 10. Qxe3 {[%clk 0:02:51.5]} 10... d5 {[%clk 0:02:37.8]} 11.
O-O-O {[%clk 0:02:50.6]} 11... Be6 {[%clk 0:02:13.5]} 12. Bc4 {[%clk 0:02:27.7]}
12... Nb4 {[%clk 0:02:09.2]} 13. a3 {[%clk 0:02:01.3]} 13... dxc4 {[%clk
0:02:09]} 14. Rxd8 {[%clk 0:01:59.4]} 14... Rfxd8 {[%clk 0:02:08.7]} 15. Nc5
{[%clk 0:01:54]} 15... Nxc2 {[%clk 0:01:48.8]} 16. Kxc2 {[%clk 0:01:52.5]} 16...
Bf7 {[%clk 0:01:47]} 17. Rd1 {[%clk 0:01:46.7]} 17... Re8 {[%clk 0:01:44.7]} 18.
Nxb7 {[%clk 0:01:37]} 18... Rab8 {[%clk 0:01:44.8]} 19. Qxa7 {[%clk 0:01:32.1]}
19... Nc6 {[%clk 0:01:44.8]} 20. Qa6 {[%clk 0:01:29.3]} 20... Re6 {[%clk
0:01:32.1]} 21. Qxc4 {[%clk 0:00:35.7]} 21... Rxb7 {[%clk 0:01:30.8]} 22. Nd5
{[%clk 0:00:32]} 22... Re8 {[%clk 0:01:16]} 23. Nxf6+ {[%clk 0:00:27.3]} 23...
gxf6 {[%clk 0:01:13.3]} 24. Qxc6 {[%clk 0:00:27.5]} 24... Ra7 {[%clk 0:01:07]}
25. Rd7 {[%clk 0:00:20.6]} 25... Rxe4 {[%clk 0:00:58.7]} 26. Qxf6 {[%clk
0:00:16.8]} 26... Re2+ {[%clk 0:00:57.8]} 27. Kd3 {[%clk 0:00:17]} 27... Bg6+
{[%clk 0:00:56.4]} 28. Kxe2 {[%clk 0:00:16.7]} 28... Bd3+ {[%clk 0:00:52.1]} 29.
Kxd3 {[%clk 0:00:15.1]} 29... Rxa3+ {[%clk 0:00:52]} 30. bxa3 {[%clk 0:00:14.6]}
1-0

[Event "Early-Titled-Tuesday-Blitz-December-26-2023"]
[Site "Chess.com"]
[Date "2023.12.26"]
[Round "9"]
[White "jlmanzanares"]
[Black "PolinaYanch"]
[Result "1-0"]
[WhiteElo "2016"]
[BlackElo "1648"]
[TimeControl "180+1"]
[EndTime "9:44:30 PST"]
[Termination "jlmanzanares won on time"]

1. e4 {[%clk 0:03:00.9]} 1... c5 {[%clk 0:02:59.9]} 2. Nf3 {[%clk 0:03:00.1]}
2... d6 {[%clk 0:02:57.3]} 3. d4 {[%clk 0:02:58.3]} 3... cxd4 {[%clk 0:02:54.8]}
4. Nxd4 {[%clk 0:02:59.2]} 4... Nf6 {[%clk 0:02:55.2]} 5. Nc3 {[%clk 0:02:58.7]}
5... a6 {[%clk 0:02:55]} 6. Be3 {[%clk 0:02:56.9]} 6... e5 {[%clk 0:02:53.9]} 7.
Nb3 {[%clk 0:02:56.6]} 7... Be6 {[%clk 0:02:53.7]} 8. f3 {[%clk 0:02:56.9]} 8...
Be7 {[%clk 0:02:53.8]} 9. Qd2 {[%clk 0:02:57.4]} 9... O-O {[%clk 0:02:52.1]} 10.
O-O-O {[%clk 0:02:57.7]} 10... b5 {[%clk 0:02:52.6]} 11. g4 {[%clk 0:02:57.9]}
11... b4 {[%clk 0:02:50.8]} 12. Nd5 {[%clk 0:02:52]} 12... Bxd5 {[%clk
0:02:48.9]} 13. exd5 {[%clk 0:02:52.9]} 13... a5 {[%clk 0:02:45.3]} 14. g5
{[%clk 0:02:52.8]} 14... Ne8 {[%clk 0:02:44.5]} 15. Kb1 {[%clk 0:02:52.6]} 15...
Nd7 {[%clk 0:02:42.6]} 16. Rg1 {[%clk 0:02:51.7]} 16... Nc5 {[%clk 0:02:10.3]}
17. Nxc5 {[%clk 0:02:39.1]} 17... dxc5 {[%clk 0:02:10.1]} 18. Bc4 {[%clk
0:02:36.9]} 18... Nd6 {[%clk 0:02:09]} 19. Bd3 {[%clk 0:02:32.5]} 19... c4
{[%clk 0:02:04.3]} 20. Be4 {[%clk 0:02:32.8]} 20... c3 {[%clk 0:01:51.7]} 21.
bxc3 {[%clk 0:02:32.1]} 21... bxc3 {[%clk 0:01:51.7]} 22. Qxc3 {[%clk 0:02:33]}
22... Nxe4 {[%clk 0:01:41]} 23. fxe4 {[%clk 0:02:31.6]} 23... Qd6 {[%clk
0:01:27.3]} 24. Ka1 {[%clk 0:02:21]} 24... Rfc8 {[%clk 0:01:25]} 25. Qd3 {[%clk
0:02:18]} 25... Rab8 {[%clk 0:01:14.1]} 26. c4 {[%clk 0:02:17.2]} 26... Qa3
{[%clk 0:00:51.6]} 27. Qxa3 {[%clk 0:02:10.7]} 27... Bxa3 {[%clk 0:00:51.5]} 28.
Rb1 {[%clk 0:02:11.2]} 28... Kf8 {[%clk 0:00:40.9]} 29. Rxb8 {[%clk 0:02:08.2]}
29... Rxb8 {[%clk 0:00:40.9]} 30. Rb1 {[%clk 0:02:08.1]} 30... Rc8 {[%clk
0:00:32.4]} 31. Rb3 {[%clk 0:02:08]} 31... Bb4 {[%clk 0:00:31.4]} 32. a3 {[%clk
0:02:05.2]} 32... Bd6 {[%clk 0:00:26.4]} 33. Rc3 {[%clk 0:01:52.3]} 33... Bc5
{[%clk 0:00:21]} 34. Bxc5+ {[%clk 0:01:48.1]} 34... Rxc5 {[%clk 0:00:21.1]} 35.
Kb1 {[%clk 0:01:49]} 35... Ke7 {[%clk 0:00:21]} 36. Kc2 {[%clk 0:01:49.5]} 36...
f6 {[%clk 0:00:21.6]} 37. Kd3 {[%clk 0:01:50]} 37... fxg5 {[%clk 0:00:21.2]} 38.
Rb3 {[%clk 0:01:48.9]} 38... Kf6 {[%clk 0:00:19.6]} 39. Rb6+ {[%clk 0:01:47.4]}
39... Ke7 {[%clk 0:00:18.9]} 40. Re6+ {[%clk 0:01:47.5]} 40... Kf7 {[%clk
0:00:17.2]} 41. Rxe5 {[%clk 0:01:48.4]} 41... h6 {[%clk 0:00:15.8]} 42. Rf5+
{[%clk 0:01:48.5]} 42... Kg6 {[%clk 0:00:15.2]} 43. Rf8 {[%clk 0:01:47.8]} 43...
Rc7 {[%clk 0:00:13]} 44. e5 {[%clk 0:01:48]} 44... Re7 {[%clk 0:00:09]} 45. e6
{[%clk 0:01:47.2]} 45... g4 {[%clk 0:00:07]} 46. Ke4 {[%clk 0:01:47.3]} 46...
Kh7 {[%clk 0:00:06]} 47. Ke5 {[%clk 0:01:47]} 47... g5 {[%clk 0:00:04.4]} 48. d6
{[%clk 0:01:47.2]} 48... Rg7 {[%clk 0:00:03.9]} 49. e7 {[%clk 0:01:46.9]} 1-0

[Event "Early-Titled-Tuesday-Blitz-December-26-2023"]
[Site "Chess.com"]
[Date "2023.12.26"]
[Round "9"]
[White "ChessSwole"]
[Black "Lion_DL"]
[Result "0-1"]
[WhiteElo "2691"]
[BlackElo "2384"]
[TimeControl "180+1"]
[EndTime "9:44:39 PST"]
[Termination "Lion_DL won by checkmate"]

1. d4 {[%clk 0:03:00.9]} 1... Nf6 {[%clk 0:02:59.4]} 2. Nc3 {[%clk 0:02:59.9]}
2... d5 {[%clk 0:02:59.1]} 3. Bf4 {[%clk 0:03:00.1]} 3... c5 {[%clk 0:02:56.9]}
4. e3 {[%clk 0:02:59.4]} 4... cxd4 {[%clk 0:02:56.7]} 5. exd4 {[%clk 0:03:00.3]}
5... a6 {[%clk 0:02:57.3]} 6. Nf3 {[%clk 0:02:55.7]} 6... Bg4 {[%clk 0:02:55.7]}
7. h3 {[%clk 0:02:55.5]} 7... Bxf3 {[%clk 0:02:55.2]} 8. Qxf3 {[%clk 0:02:56.4]}
8... Nc6 {[%clk 0:02:55.3]} 9. O-O-O {[%clk 0:02:55.6]} 9... e6 {[%clk
0:02:55.4]} 10. g4 {[%clk 0:02:55.4]} 10... Bb4 {[%clk 0:02:55.4]} 11. g5 {[%clk
0:02:47.3]} 11... Bxc3 {[%clk 0:02:51.4]} 12. Qxc3 {[%clk 0:02:48.2]} 12... Ne4
{[%clk 0:02:51]} 13. Qe3 {[%clk 0:02:43.7]} 13... Qa5 {[%clk 0:02:49.1]} 14. Kb1
{[%clk 0:02:37.7]} 14... Rc8 {[%clk 0:02:38.8]} 15. a3 {[%clk 0:02:31.5]} 15...
Ke7 {[%clk 0:02:02.9]} 16. Bd3 {[%clk 0:02:13.8]} 16... Nd6 {[%clk 0:01:42.2]}
17. Bxd6+ {[%clk 0:01:58.2]} 17... Kxd6 {[%clk 0:01:43.1]} 18. c3 {[%clk
0:01:55.5]} 18... Rhd8 {[%clk 0:01:35.8]} 19. h4 {[%clk 0:01:52]} 19... Ne7
{[%clk 0:01:26.8]} 20. Qf4+ {[%clk 0:01:49.5]} 20... Kd7 {[%clk 0:01:23]} 21.
Rhe1 {[%clk 0:01:37.8]} 21... Rf8 {[%clk 0:01:17.5]} 22. h5 {[%clk 0:01:36.6]}
22... g6 {[%clk 0:01:15.1]} 23. Qf6 {[%clk 0:01:29.9]} 23... Qb6 {[%clk
0:01:02.3]} 24. Ka2 {[%clk 0:01:22.7]} 24... Qd6 {[%clk 0:00:46.5]} 25. Qg7
{[%clk 0:01:09.5]} 25... gxh5 {[%clk 0:00:34.7]} 26. Bxh7 {[%clk 0:00:59]} 26...
b5 {[%clk 0:00:23.9]} 27. g6 {[%clk 0:00:53.9]} 27... fxg6 {[%clk 0:00:22.4]}
28. Re5 {[%clk 0:00:43]} 28... Rxf2 {[%clk 0:00:19.9]} 29. Rde1 {[%clk
0:00:35.8]} 29... Rxc3 {[%clk 0:00:20]} 30. Rxe6 {[%clk 0:00:30.1]} 30... Qxa3+
{[%clk 0:00:19.3]} 31. Kb1 {[%clk 0:00:30]} 31... Qxb2# {[%clk 0:00:19.7]} 0-1

[Event "Early-Titled-Tuesday-Blitz-December-26-2023"]
[Site "Chess.com"]
[Date "2023.12.26"]
[Round "9"]
[White "Yeritsyaan"]
[Black "Road2GM3000"]
[Result "1-0"]
[WhiteElo "2649"]
[BlackElo "2505"]
[TimeControl "180+1"]
[EndTime "9:44:43 PST"]
[Termination "Yeritsyaan won by resignation"]

1. Nf3 {[%clk 0:03:00.9]} 1... d5 {[%clk 0:02:57.6]} 2. g3 {[%clk 0:03:00.3]}
2... Nf6 {[%clk 0:02:56.6]} 3. Bg2 {[%clk 0:02:59.9]} 3... c6 {[%clk 0:02:57.4]}
4. O-O {[%clk 0:03:00.1]} 4... Bg4 {[%clk 0:02:58]} 5. c4 {[%clk 0:03:00]} 5...
e6 {[%clk 0:02:58.3]} 6. cxd5 {[%clk 0:03:00.3]} 6... cxd5 {[%clk 0:02:57.9]} 7.
b3 {[%clk 0:02:55.4]} 7... Be7 {[%clk 0:02:58.2]} 8. Bb2 {[%clk 0:02:56]} 8...
O-O {[%clk 0:02:58.9]} 9. d3 {[%clk 0:02:56.5]} 9... Nc6 {[%clk 0:02:58.3]} 10.
Nbd2 {[%clk 0:02:57.1]} 10... Rc8 {[%clk 0:02:58.2]} 11. a3 {[%clk 0:02:57.8]}
11... Qb6 {[%clk 0:02:54.5]} 12. Rc1 {[%clk 0:02:54.6]} 12... h6 {[%clk
0:02:45.6]} 13. Rc2 {[%clk 0:02:38]} 13... Qa6 {[%clk 0:02:33.2]} 14. Qa1 {[%clk
0:02:36.2]} 14... Bxf3 {[%clk 0:02:18]} 15. Nxf3 {[%clk 0:02:32.9]} 15... Na5
{[%clk 0:02:17.5]} 16. Rxc8 {[%clk 0:02:29.1]} 16... Rxc8 {[%clk 0:02:18.4]} 17.
b4 {[%clk 0:02:29.3]} 17... Nb3 {[%clk 0:02:04.4]} 18. Qd1 {[%clk 0:02:25.5]}
18... Qa4 {[%clk 0:01:53.7]} 19. Nd4 {[%clk 0:02:15.7]} 19... Nc5 {[%clk
0:01:44.9]} 20. bxc5 {[%clk 0:02:14.9]} 20... Qa5 {[%clk 0:01:39.3]} 21. Nb3
{[%clk 0:02:10.8]} 21... Qb5 {[%clk 0:01:37.2]} 22. d4 {[%clk 0:02:08.5]} 22...
a5 {[%clk 0:01:36.2]} 23. Qd3 {[%clk 0:02:07.6]} 23... Qxd3 {[%clk 0:01:29.1]}
24. exd3 {[%clk 0:02:08.5]} 24... a4 {[%clk 0:01:28.6]} 25. Nd2 {[%clk
0:02:06.8]} 25... b6 {[%clk 0:01:26.2]} 26. Rc1 {[%clk 0:02:05.9]} 26... bxc5
{[%clk 0:01:22.3]} 27. dxc5 {[%clk 0:02:06.8]} 27... Rxc5 {[%clk 0:01:22.5]} 28.
Rxc5 {[%clk 0:02:05.6]} 28... Bxc5 {[%clk 0:01:23.4]} 29. Bf3 {[%clk 0:02:00.5]}
29... Nd7 {[%clk 0:01:21.9]} 30. Bd1 {[%clk 0:01:59.8]} 30... Nb6 {[%clk
0:01:22.5]} 31. Kf1 {[%clk 0:01:57.4]} 31... f6 {[%clk 0:01:22.9]} 32. Nb1
{[%clk 0:01:55.6]} 32... d4 {[%clk 0:01:21.9]} 33. Nd2 {[%clk 0:01:54.7]} 33...
e5 {[%clk 0:01:18.1]} 34. Nc4 {[%clk 0:01:55.3]} 34... Nxc4 {[%clk 0:01:01.6]}
35. dxc4 {[%clk 0:01:56.2]} 35... e4 {[%clk 0:01:00.4]} 36. Bxa4 {[%clk
0:01:55.9]} 36... f5 {[%clk 0:00:59.9]} 37. Bd7 {[%clk 0:01:48.2]} 37... g6
{[%clk 0:00:59.2]} 38. g4 {[%clk 0:01:48.5]} 38... f4 {[%clk 0:00:58.2]} 39. Bc6
{[%clk 0:01:47.8]} 39... e3 {[%clk 0:00:57.1]} 40. Be4 {[%clk 0:01:45.7]} 40...
Kf7 {[%clk 0:00:48.3]} 41. fxe3 {[%clk 0:01:43.8]} 41... fxe3 {[%clk 0:00:41.9]}
42. Ke2 {[%clk 0:01:44.2]} 42... Kf6 {[%clk 0:00:42]} 43. Kd3 {[%clk 0:01:37.7]}
43... Kg5 {[%clk 0:00:41.2]} 44. Bf3 {[%clk 0:01:33.4]} 44... Kf4 {[%clk
0:00:38.6]} 45. Be2 {[%clk 0:01:33.5]} 45... Ke5 {[%clk 0:00:33.5]} 46. a4
{[%clk 0:01:33.8]} 46... g5 {[%clk 0:00:24.7]} 47. a5 {[%clk 0:01:31.1]} 47...
Ba7 {[%clk 0:00:24.9]} 48. a6 {[%clk 0:01:30.5]} 48... Bc5 {[%clk 0:00:24.1]}
49. Ba3 {[%clk 0:01:26.6]} 49... Ba7 {[%clk 0:00:24.7]} 50. Bf8 {[%clk
0:01:24.7]} 50... Kf4 {[%clk 0:00:23.4]} 51. Bxh6 {[%clk 0:01:22.6]} 51... Bc5
{[%clk 0:00:21.9]} 52. Bg7 {[%clk 0:01:22]} 52... Bb6 {[%clk 0:00:18.3]} 53. Bf8
{[%clk 0:01:20.8]} 53... Bc5 {[%clk 0:00:18.3]} 54. Bxc5 {[%clk 0:01:19.8]} 1-0

[Event "Early-Titled-Tuesday-Blitz-December-26-2023"]
[Site "Chess.com"]
[Date "2023.12.26"]
[Round "9"]
[White "Devil_Sun"]
[Black "Alexchess1984"]
[Result "1-0"]
[WhiteElo "2620"]
[BlackElo "2709"]
[TimeControl "180+1"]
[EndTime "9:44:54 PST"]
[Termination "Devil_Sun won by resignation"]

1. d4 {[%clk 0:03:00.9]} 1... Nf6 {[%clk 0:02:59]} 2. c4 {[%clk 0:03:01.3]} 2...
g6 {[%clk 0:02:59.5]} 3. Nc3 {[%clk 0:03:01.1]} 3... d5 {[%clk 0:03:00.1]} 4.
Nf3 {[%clk 0:03:01.1]} 4... Bg7 {[%clk 0:02:59.5]} 5. Qb3 {[%clk 0:03:01.3]}
5... dxc4 {[%clk 0:02:59.3]} 6. Qxc4 {[%clk 0:03:02.2]} 6... O-O {[%clk
0:02:57.6]} 7. e4 {[%clk 0:03:02.4]} 7... a6 {[%clk 0:02:56.8]} 8. Be2 {[%clk
0:03:01.7]} 8... b5 {[%clk 0:02:56.3]} 9. Qb3 {[%clk 0:03:02.3]} 9... Bb7 {[%clk
0:02:54.5]} 10. e5 {[%clk 0:02:57.7]} 10... Nd5 {[%clk 0:02:54.2]} 11. O-O
{[%clk 0:02:56.5]} 11... Nxc3 {[%clk 0:02:41.4]} 12. bxc3 {[%clk 0:02:44.7]}
12... Bd5 {[%clk 0:02:37.4]} 13. Qc2 {[%clk 0:02:24.5]} 13... Nc6 {[%clk
0:02:36.4]} 14. Rd1 {[%clk 0:02:17.6]} 14... Qd7 {[%clk 0:02:26.9]} 15. Be3
{[%clk 0:02:09.4]} 15... Na5 {[%clk 0:02:23]} 16. Nd2 {[%clk 0:02:05.6]} 16...
c5 {[%clk 0:02:20.8]} 17. Ne4 {[%clk 0:01:53.6]} 17... cxd4 {[%clk 0:02:11.4]}
18. Bxd4 {[%clk 0:01:47.6]} 18... Qc6 {[%clk 0:02:09.3]} 19. Bf3 {[%clk
0:01:44.9]} 19... Nc4 {[%clk 0:02:05.7]} 20. Qe2 {[%clk 0:01:26.5]} 20... Rad8
{[%clk 0:02:02.7]} 21. Ng5 {[%clk 0:01:17]} 21... Bxf3 {[%clk 0:02:01.7]} 22.
Nxf3 {[%clk 0:01:17.9]} 22... e6 {[%clk 0:01:57.1]} 23. a4 {[%clk 0:01:16.7]}
23... bxa4 {[%clk 0:01:55.7]} 24. Nd2 {[%clk 0:01:12.7]} 24... Nxd2 {[%clk
0:01:46.2]} 25. Rxd2 {[%clk 0:01:13.6]} 25... Qb5 {[%clk 0:01:35.4]} 26. Rda2
{[%clk 0:01:01.5]} 26... Rc8 {[%clk 0:01:17.8]} 27. Qd1 {[%clk 0:00:37.2]} 27...
Bxe5 {[%clk 0:01:04.9]} 28. Rxa4 {[%clk 0:00:34.5]} 28... Bxd4 {[%clk
0:01:03.7]} 29. cxd4 {[%clk 0:00:35.4]} 29... Rc6 {[%clk 0:01:03.2]} 30. h3
{[%clk 0:00:32.8]} 30... Rd8 {[%clk 0:01:02.3]} 31. Qf3 {[%clk 0:00:26.1]} 31...
Qd5 {[%clk 0:00:50.2]} 32. Qd3 {[%clk 0:00:17.8]} 32... e5 {[%clk 0:00:46.9]}
33. Rxa6 {[%clk 0:00:15.7]} 33... Rxa6 {[%clk 0:00:45.5]} 34. Rxa6 {[%clk
0:00:16.1]} 34... Qxd4 {[%clk 0:00:45.7]} 35. Qb5 {[%clk 0:00:15.3]} 35... Qd1+
{[%clk 0:00:43.8]} 36. Kh2 {[%clk 0:00:15.9]} 36... Qd6 {[%clk 0:00:43.5]} 37.
Rxd6 {[%clk 0:00:15.4]} 1-0

[Event "Early-Titled-Tuesday-Blitz-December-26-2023"]
[Site "Chess.com"]
[Date "2023.12.26"]
[Round "9"]
[White "TanitoluwaAps116"]
[Black "Herzog2012"]
[Result "1-0"]
[WhiteElo "2724"]
[BlackElo "2548"]
[TimeControl "180+1"]
[EndTime "9:45:00 PST"]
[Termination "TanitoluwaAps116 won on time"]

1. e4 {[%clk 0:02:52.1]} 1... c5 {[%clk 0:02:56.1]} 2. Nf3 {[%clk 0:02:50.5]}
2... d6 {[%clk 0:02:53.5]} 3. Bb5+ {[%clk 0:02:47.6]} 3... Nd7 {[%clk
0:02:53.3]} 4. c3 {[%clk 0:02:35.7]} 4... Nf6 {[%clk 0:02:46.9]} 5. Bd3 {[%clk
0:02:35.4]} 5... g6 {[%clk 0:02:39.4]} 6. Bc2 {[%clk 0:02:34.5]} 6... Bg7 {[%clk
0:02:37]} 7. d4 {[%clk 0:02:35.4]} 7... O-O {[%clk 0:02:36.6]} 8. O-O {[%clk
0:02:34]} 8... e5 {[%clk 0:02:28]} 9. dxe5 {[%clk 0:02:33.5]} 9... Nxe5 {[%clk
0:02:18.8]} 10. Nxe5 {[%clk 0:02:32.6]} 10... dxe5 {[%clk 0:02:19.7]} 11. c4
{[%clk 0:02:30.5]} 11... Be6 {[%clk 0:02:13.5]} 12. Qe2 {[%clk 0:02:24.7]} 12...
Qd4 {[%clk 0:01:57]} 13. Rd1 {[%clk 0:02:07]} 13... Qxc4 {[%clk 0:01:41.2]} 14.
Qxc4 {[%clk 0:02:01.5]} 14... Bxc4 {[%clk 0:01:40.7]} 15. Nc3 {[%clk 0:02:02.4]}
15... Rfd8 {[%clk 0:01:25.8]} 16. Be3 {[%clk 0:02:00.4]} 16... b6 {[%clk
0:01:23.3]} 17. Bb3 {[%clk 0:01:57.2]} 17... Bxb3 {[%clk 0:01:19.5]} 18. axb3
{[%clk 0:01:58.1]} 18... Rxd1+ {[%clk 0:00:58.1]} 19. Rxd1 {[%clk 0:01:59]}
19... Kf8 {[%clk 0:00:57]} 20. Bg5 {[%clk 0:01:48.1]} 20... Ke8 {[%clk
0:00:54.6]} 21. Nb5 {[%clk 0:01:37.5]} 21... Ke7 {[%clk 0:00:25.3]} 22. Nc7
{[%clk 0:01:29.4]} 22... Rc8 {[%clk 0:00:19.9]} 23. Bxf6+ {[%clk 0:01:20.5]}
23... Bxf6 {[%clk 0:00:17.6]} 24. Nd5+ {[%clk 0:01:20.4]} 24... Ke6 {[%clk
0:00:17.8]} 25. Ra1 {[%clk 0:01:20.9]} 25... c4 {[%clk 0:00:05.7]} 26. b4 {[%clk
0:01:16.7]} 26... Bg5 {[%clk 0:00:04.7]} 27. Rxa7 {[%clk 0:01:07.4]} 27... Bc1
{[%clk 0:00:05.1]} 28. Nxb6 {[%clk 0:01:06.9]} 28... Rc6 {[%clk 0:00:02.5]} 29.
b5 {[%clk 0:00:34.4]} 29... Bxb2 {[%clk 0:00:02.8]} 30. bxc6 {[%clk 0:00:33.4]}
30... c3 {[%clk 0:00:02.1]} 31. c7 {[%clk 0:00:30.8]} 1-0